bitfinex/quotes_BTCUSD_20241024
["timestamp","ask_amount","ask_price","bid_price","bid_amount"]
[1729748694892,0.000825,67405.0,67404.0,0.39606536]
[1729748696855,0.007825,67405.0,67404.0,0.39606536]
[1729748697217,0.005825,67405.0,67404.0,0.39606536]
[1729748697634,0.007825,67405.0,67404.0,0.39606536]
[1729748698248,0.000825,67405.0,67404.0,0.39606536]
[1729748699083,0.005825,67405.0,67404.0,0.39606536]
[1729748699814,0.005825,67405.0,67404.0,0.39606474]
[1729748700310,0.000825,67405.0,67404.0,0.39993215]
[1729748700804,0.000825,67405.0,67404.0,0.57703215]
[1729748705960,0.000825,67405.0,67404.0,0.57703124]
[1729748706190,0.000825,67405.0,67404.0,0.56960867]
[1729748709344,0.000825,67405.0,67404.0,0.39250867]
[1729748711515,0.000825,67405.0,67404.0,0.56130867]
[1729748717267,0.000825,67405.0,67404.0,0.47120867]
[1729748720647,0.000825,67405.0,67404.0,0.30165605]
[1729748724242,0.000825,67405.0,67404.0,0.30165604]
[1729748725504,0.000825,67405.0,67404.0,0.39250866]
[1729748727023,0.002825,67405.0,67404.0,0.39250866]
[1729748727224,0.000825,67405.0,67404.0,0.39250866]
[1729748727627,0.000825,67405.0,67404.0,0.30165604]
[1729748728247,0.000825,67405.0,67404.0,0.29701695]
[1729748729924,0.000825,67405.0,67404.0,0.30165607]
[1729748730654,0.000825,67405.0,67404.0,0.18296907]
[1729748731201,0.000825,67405.0,67404.0,0.30165607]
[1729748737299,0.000825,67405.0,67404.0,0.30165609]
[1729748739035,0.002825,67405.0,67404.0,0.18296909]
[1729748739243,0.000825,67405.0,67404.0,0.30165609]
[1729748743511,0.000825,67405.0,67404.0,0.39250871]
[1729748744334,0.002825,67405.0,67404.0,0.27382171]
[1729748744528,0.002825,67405.0,67404.0,0.18296909]
[1729748744942,0.002825,67405.0,67404.0,0.30165609]
[1729748745384,0.002825,67405.0,67404.0,0.17910168]
[1729748745637,0.30461,67405.0,67404.0,0.02859787]
[1729748745850,0.58010688,67405.0,67404.0,0.02859787]
[1729748746091,0.46897097,67405.0,67404.0,5e-05]
[1729748746292,0.58021576,67405.0,67404.0,5e-05]
[1729748747312,0.55793326,67405.0,67404.0,5e-05]
[1729748748247,0.30461,67405.0,67404.0,5e-05]
[1729748748449,0.46876265,67405.0,67404.0,5e-05]
[1729748748765,0.54131734,67405.0,67404.0,5e-05]
[1729748748972,0.48076265,67405.0,67404.0,5e-05]
[1729748749152,0.48576265,67405.0,67404.0,5e-05]
[1729748749593,0.48376265,67405.0,67404.0,5e-05]
[1729748749804,0.61712574,67405.0,67404.0,5e-05]
[1729748750243,0.48376265,67405.0,67404.0,5e-05]
[1729748750466,0.58763623,67405.0,67404.0,5e-05]
[1729748750747,0.58963623,67405.0,67404.0,5e-05]
[1729748750938,0.48376265,67405.0,67404.0,5e-05]
[1729748752854,0.48766597,67405.0,67404.0,5e-05]
[1729748754203,0.59860196,67405.0,67404.0,5e-05]
[1729748754991,0.48766597,67405.0,67404.0,5e-05]
[1729748755195,0.59857808,67405.0,67404.0,5e-05]
[1729748756158,0.48766597,67405.0,67404.0,5e-05]
[1729748756356,0.59857808,67405.0,67404.0,5e-05]
[1729748757253,0.60057808,67405.0,67404.0,5e-05]
[1729748758077,0.48376265,67405.0,67404.0,5e-05]
[1729748758310,0.57444279,67405.0,67404.0,5e-05]
[1729748758974,0.48576265,67405.0,67404.0,5e-05]
[1729748759155,0.57443002,67405.0,67404.0,5e-05]
[1729748759772,0.57243002,67405.0,67404.0,5e-05]
[1729748759985,0.57443002,67405.0,67404.0,5e-05]
[1729748760830,0.57243002,67405.0,67404.0,5e-05]
[1729748761452,0.72493383,67405.0,67404.0,5e-05]
[1729748761657,0.86355348,67405.0,67404.0,5e-05]
[1729748762299,0.88655348,67405.0,67404.0,5e-05]
[1729748763106,0.88600761,67405.0,67404.0,5e-05]
[1729748767274,0.99673292,67405.0,67404.0,5e-05]
[1729748768039,0.99661641,67405.0,67404.0,5e-05]
[1729748769102,0.032,67395.0,67394.0,0.00165]
[1729748769309,0.50870824,67395.0,67394.0,0.00165]
[1729748769522,0.41785562,67395.0,67394.0,0.0379879]
[1729748769763,0.41785562,67395.0,67394.0,0.00165]
[1729748771742,0.41985562,67395.0,67394.0,0.00165]
[1729748772539,0.51070824,67395.0,67394.0,0.00165]
[1729748773635,0.41985562,67395.0,67394.0,0.00165]
[1729748773838,0.51070824,67395.0,67394.0,0.00165]
[1729748774371,0.41985562,67395.0,67394.0,0.00165]
[1729748774639,0.42359188,67395.0,67394.0,0.00165]
[1729748774960,0.83223198,67395.0,67394.0,0.00165]
[1729748775137,0.78794831,67395.0,67394.0,0.00165]
[1729748775338,0.85436874,67395.0,67394.0,0.00165]
[1729748775900,0.78794831,67395.0,67394.0,0.00165]
[1729748776286,0.8543671,67395.0,67394.0,0.00165]
[1729748776734,0.78794831,67395.0,67394.0,0.00165]
[1729748777535,0.85436561,67395.0,67394.0,0.00165]
[1729748778403,1.00486942,67395.0,67394.0,0.00165]
[1729748780370,0.93845212,67395.0,67394.0,0.00165]
[1729748780580,1.19047607,67395.0,67394.0,0.00165]
[1729748781478,1.01320732,67395.0,67394.0,0.00165]
[1729748781993,0.92465092,67395.0,67394.0,0.00165]
[1729748782240,1.01320732,67395.0,67394.0,0.00165]
[1729748782444,0.92465092,67395.0,67394.0,0.00165]
[1729748782644,1.01320732,67395.0,67394.0,0.00165]
[1729748784308,0.92465092,67395.0,67394.0,0.00165]
[1729748784434,1.01325879,67395.0,67394.0,0.00165]
[1729748784637,0.92465092,67395.0,67394.0,0.00165]
[1729748784870,1.01325876,67395.0,67394.0,0.00165]
[1729748785286,0.92465092,67395.0,67394.0,0.00165]
[1729748785509,1.03534642,67395.0,67394.0,0.00165]
[1729748785650,0.92465092,67395.0,67394.0,0.00165]
[1729748786487,1.0354585,67395.0,67394.0,0.00165]
[1729748786687,0.92465092,67395.0,67394.0,0.00165]
[1729748787037,0.92479785,67395.0,67394.0,0.00165]
[1729748789434,1.07530166,67395.0,67394.0,0.00165]
[1729748789644,1.25105417,67395.0,67394.0,0.00165]
[1729748789854,1.11808494,67395.0,67394.0,0.00165]
[1729748790269,1.11808494,67395.0,67391.0,0.00165]
[1729748790270,0.41319568,67392.0,67391.0,0.00165]
[1729748790480,0.87009725,67392.0,67391.0,0.00165]
[1729748791340,1.02060106,67392.0,67391.0,0.00165]
[1729748791551,0.96094987,67392.0,67391.0,0.00165]
[1729748792863,0.5810643,67383.0,67382.0,0.22297704]
[1729748793068,0.91818259,67383.0,67382.0,0.22297704]
[1729748793285,0.118736,67376.0,67375.0,0.22297704]
[1729748793495,0.20958862,67376.0,67375.0,0.22297704]
[1729748793711,0.3732031,67376.0,67375.0,0.03645718]
[1729748793938,0.118748,67369.0,67368.0,0.22297704]
[1729748794379,0.118748,67369.0,67368.0,0.03649052]
[1729748794587,0.118752,67367.0,67365.0,0.0824]
[1729748794805,0.118754,67366.0,67365.0,0.0824]
[1729748795303,0.20960662,67366.0,67365.0,0.11890481]
[1729748795526,0.118754,67366.0,67365.0,0.11890481]
[1729748795749,0.118752,67367.0,67365.0,0.11890481]
[1729748795987,0.06659342,67370.0,67365.0,0.11890481]
[1729748795988,0.04439561,67370.0,67368.0,0.1788]
[1729748796196,0.04439561,67373.0,67368.0,0.1788]
[1729748796461,0.34171704,67374.0,67368.0,0.1788]
[1729748796462,0.26737087,67374.0,67368.0,0.1788]
[1729748796649,0.38611187,67374.0,67369.0,0.03662852]
[1729748796898,0.16313483,67374.0,67368.0,0.1788]
[1729748797329,0.118741,67374.0,67369.0,0.03662852]
[1729748799335,0.00222626,67376.0,67369.0,0.03662852]
[1729748799766,0.118741,67374.0,67368.0,0.1788]
[1729748800612,0.118741,67374.0,67369.0,0.03662852]
[1729748801987,0.118741,67374.0,67369.0,0.03745452]
[1729748804278,0.118741,67373.0,67369.0,0.03745452]
[1729748805945,0.04439768,67375.0,67374.0,0.005]
[1729748806181,0.04439768,67377.0,67376.0,0.005]
[1729748806428,0.04439768,67380.0,67376.0,0.005]
[1729748806635,0.00222602,67378.0,67376.0,0.005]
[1729748807260,0.00222602,67378.0,67377.0,0.03781638]
[1729748807779,0.00222602,67378.0,67376.0,0.005]
[1729748807780,0.118734,67377.0,67376.0,0.005]
[1729748807983,0.00222602,67378.0,67376.0,0.005]
[1729748808191,0.0466237,67378.0,67376.0,0.005]
[1729748808624,0.12095902,67378.0,67376.0,0.005]
[1729748809054,0.1653567,67378.0,67376.0,0.005]
[1729748809890,0.118734,67377.0,67376.0,0.005]
[1729748810190,0.118734,67377.0,67376.0,0.04282114]
[1729748811996,0.16316991,67377.0,67376.0,0.04282114]
[1729748812196,0.118734,67377.0,67376.0,0.04282114]
[1729748813301,0.16316991,67377.0,67376.0,0.04282114]
[1729748813522,0.118734,67377.0,67376.0,0.04282114]
[1729748813949,0.16316991,67377.0,67376.0,0.04282114]
[1729748814876,0.16316991,67377.0,67376.0,0.04364714]
[1729748815323,0.118734,67377.0,67376.0,0.04364714]
[1729748817208,0.18538787,67377.0,67376.0,0.04364714]
[1729748817810,0.118734,67377.0,67376.0,0.04364714]
[1729748818019,0.18538787,67377.0,67376.0,0.04364714]
[1729748819376,0.37178924,67377.0,67376.0,0.03864714]
[1729748819612,0.37178924,67377.0,67376.0,0.000826]
[1729748820384,0.28293055,67377.0,67376.0,0.000826]
[1729748820586,0.28293055,67377.0,67376.0,0.005826]
[1729748820707,0.37189348,67377.0,67376.0,0.000826]
[1729748821316,0.28293055,67377.0,67376.0,0.000826]
[1729748821810,0.37189326,67377.0,67376.0,0.000826]
[1729748822585,0.28293055,67377.0,67376.0,0.000826]
[1729748823001,0.37189313,67377.0,67376.0,0.000826]
[1729748823935,0.118734,67377.0,67376.0,0.000826]
[1729748828252,0.208834,67377.0,67376.0,0.000826]
[1729748828460,0.284334,67377.0,67376.0,0.000826]
[1729748828877,0.208834,67377.0,67376.0,0.000826]
[1729748830426,0.118734,67377.0,67376.0,0.000826]
[1729748832529,0.292534,67377.0,67376.0,0.000826]
[1729748832848,0.66793291,67377.0,67376.0,0.000826]
[1729748833090,0.71076728,67377.0,67376.0,0.000826]
[1729748833566,0.59110724,67377.0,67376.0,0.000826]
[1729748834352,0.59310724,67377.0,67376.0,0.000826]
[1729748835069,0.59110724,67377.0,67376.0,0.000826]
[1729748835613,0.59310724,67377.0,67376.0,0.000826]
[1729748836599,0.59110724,67377.0,67376.0,0.000826]
[1729748836788,0.71097615,67377.0,67376.0,0.000826]
[1729748837234,0.71297615,67377.0,67376.0,0.000826]
[1729748837650,0.71678618,67377.0,67376.0,0.000826]
[1729748837852,0.59491727,67377.0,67376.0,0.000826]
[1729748838677,0.5520829,67377.0,67376.0,0.000826]
[1729748840039,0.54827287,67377.0,67376.0,0.000826]
[1729748841242,0.71235221,67377.0,67376.0,0.000826]
[1729748846285,0.7122357,67377.0,67376.0,0.000826]
[1729748846498,0.86273951,67377.0,67376.0,0.000826]
[1729748847143,0.7122357,67377.0,67376.0,0.000826]
[1729748849991,0.7142357,67377.0,67376.0,0.000826]
[1729748851137,0.71418909,67377.0,67376.0,0.000826]
[1729748851986,0.71218909,67377.0,67376.0,0.000826]
[1729748852873,0.82804171,67377.0,67376.0,0.000826]
[1729748853089,0.91171145,67377.0,67376.0,0.000826]
[1729748853304,0.10523506,67370.0,67369.0,0.000826]
[1729748853520,0.56960352,67370.0,67369.0,0.000826]
[1729748853735,0.4787509,67370.0,67369.0,0.000826]
[1729748855268,0.5781509,67370.0,67369.0,0.000826]
[1729748858651,0.72865471,67370.0,67369.0,0.000826]
[1729748858834,0.87915852,67370.0,67369.0,0.000826]
[1729748859362,0.72865471,67370.0,67369.0,0.000826]
[1729748859900,0.63780209,67370.0,67369.0,0.000826]
[1729748860101,0.72865471,67370.0,67369.0,0.000826]
[1729748861424,0.41423468,67370.0,67369.0,0.000826]
[1729748864932,0.31483468,67370.0,67369.0,0.000826]
[1729748865138,0.22398206,67370.0,67369.0,0.000826]
[1729748865344,0.31483468,67370.0,67369.0,0.000826]
[1729748865792,0.30983468,67370.0,67369.0,0.000826]
[1729748868018,0.35270839,67370.0,67369.0,0.000826]
[1729748874422,0.44310839,67370.0,67369.0,0.000826]
[1729748874836,0.44810839,67370.0,67369.0,0.000826]
[1729748877229,0.57239493,67370.0,67369.0,0.000826]
[1729748878328,0.44810839,67370.0,67369.0,0.000826]
[1729748881008,0.26185577,67370.0,67369.0,0.000826]
[1729748881263,0.21898206,67370.0,67369.0,0.000826]
[1729748881695,0.21898206,67370.0,67369.0,0.01833416]
[1729748886254,0.30938206,67370.0,67369.0,0.000826]
[1729748887397,0.31138206,67370.0,67369.0,0.000826]
[1729748887510,0.30938206,67370.0,67369.0,0.000826]
[1729748888537,0.31138206,67370.0,67369.0,0.000826]
[1729748888739,0.43106123,67370.0,67369.0,0.000826]
[1729748888942,0.43606123,67370.0,67369.0,0.000826]
[1729748889350,0.35725892,67370.0,67369.0,0.000826]
[1729748891208,0.34880629,67370.0,67369.0,0.000826]
[1729748891836,0.30592943,67370.0,67369.0,0.000826]
[1729748893078,0.34880589,67370.0,67369.0,0.000826]
[1729748893902,0.35080589,67370.0,67369.0,0.000826]
[1729748894108,0.34880589,67370.0,67369.0,0.000826]
[1729748896364,0.35080589,67370.0,67369.0,0.000826]
[1729748897596,0.34880589,67370.0,67369.0,0.000826]
[1729748901032,0.5243097,67370.0,67369.0,0.000826]
[1729748901253,0.5223097,67370.0,67369.0,0.000826]
[1729748901500,0.5223097,67370.0,67369.0,0.00124103]
[1729748907277,0.5239597,67370.0,67369.0,0.00124103]
[1729748910612,0.25505589,67370.0,67369.0,0.00124103]
[1729748910811,0.21217943,67370.0,67369.0,0.00124103]
[1729748916787,0.21717943,67370.0,67369.0,0.00124103]
[1729748917001,0.35095143,67370.0,67369.0,0.00124103]
[1729748917782,0.50145524,67370.0,67369.0,0.00124103]
[1729748917992,0.50345524,67370.0,67369.0,0.00124103]
[1729748918407,0.50145524,67370.0,67369.0,0.00124103]
[1729748918816,0.60735524,67370.0,67369.0,0.00124103]
[1729748919237,0.61110256,67370.0,67369.0,0.00124103]
[1729748920088,0.70180385,67370.0,67369.0,0.00124103]
[1729748920310,0.79465647,67370.0,67369.0,0.00124103]
[1729748920528,0.70380385,67370.0,67369.0,0.00124103]
[1729748921367,0.79465647,67370.0,67369.0,0.00124103]
[1729748922152,0.79265647,67370.0,67369.0,0.00124103]
[1729748923713,0.70195518,67370.0,67369.0,0.00124103]
[1729748924580,0.61110256,67370.0,67369.0,0.00124103]
[1729748924798,0.60735524,67370.0,67369.0,0.00124103]
[1729748925000,0.69820786,67370.0,67369.0,0.00124103]
[1729748931550,0.78906048,67370.0,67369.0,0.00124103]
[1729748931784,0.69820786,67370.0,67369.0,0.00124103]
[1729748932024,0.78906048,67370.0,67369.0,0.00124103]
[1729748932201,0.69820786,67370.0,67369.0,0.00124103]
[1729748932847,0.356299,67359.0,67357.0,0.00165]
[1729748933061,0.37405234,67358.0,67357.0,0.00165]
[1729748934793,0.28319972,67358.0,67357.0,0.00165]
[1729748936484,0.28316022,67358.0,67357.0,0.00165]
[1729748944637,0.28315485,67358.0,67357.0,0.00165]
[1729748946240,0.37400747,67358.0,67357.0,0.00165]
[1729748946425,0.5076044,67358.0,67357.0,0.00165]
[1729748946637,0.37400747,67358.0,67357.0,0.00165]
[1729748948856,0.39700747,67358.0,67357.0,0.00165]
[1729748949065,0.56800747,67358.0,67357.0,0.00165]
[1729748949483,0.56797485,67358.0,67357.0,0.00165]
[1729748950340,0.47712223,67358.0,67357.0,0.00165]
[1729748950553,0.56797485,67358.0,67357.0,0.00165]
[1729748954485,0.46537485,67358.0,67357.0,0.00165]
[1729748954717,0.59889818,67358.0,67357.0,0.00165]
[1729748955400,0.46530612,67358.0,67357.0,0.00165]
[1729748955583,0.59882069,67358.0,67357.0,0.00165]
[1729748955785,0.46530612,67358.0,67357.0,0.00165]
[1729748957255,0.59882069,67358.0,67357.0,0.00165]
[1729748959358,0.50796807,67358.0,67357.0,0.00165]
[1729748959601,0.46530612,67358.0,67357.0,0.00165]
[1729748960486,0.59883958,67358.0,67357.0,0.00165]
[1729748961828,0.3744535,67358.0,67357.0,0.00165]
[1729748962058,0.46530612,67358.0,67357.0,0.00165]
[1729748962722,0.3744535,67358.0,67357.0,0.00165]
[1729748962935,0.46530612,67358.0,67357.0,0.00165]
[1729748965073,0.59889843,67358.0,67357.0,0.00165]
[1729748965287,0.50804581,67358.0,67357.0,0.00165]
[1729748965512,0.59889843,67358.0,67357.0,0.00165]
[1729748965927,0.46534901,67358.0,67357.0,0.00165]
[1729748966907,0.59890417,67358.0,67357.0,0.00165]
[1729748969745,0.50750417,67358.0,67357.0,0.00165]
[1729748969892,0.37394901,67358.0,67357.0,0.00165]
[1729748971700,0.50750417,67358.0,67357.0,0.00165]
[1729748974349,0.37394901,67358.0,67357.0,0.00165]
[1729748974776,0.37397291,67358.0,67357.0,0.00165]
[1729748975655,0.50754647,67358.0,67357.0,0.00165]
[1729748975849,0.37397291,67358.0,67357.0,0.00165]
[1729748977242,0.50755418,67358.0,67357.0,0.00165]
[1729748977441,0.41670156,67358.0,67357.0,0.00165]
[1729748978750,0.28312029,67358.0,67357.0,0.00165]
[1729748979476,0.283132,67358.0,67357.0,0.00165]
[1729748979941,0.283132,67358.0,67357.0,0.0178833]
[1729748980166,0.283132,67358.0,67357.0,0.00165]
[1729748982698,0.2756814,67358.0,67357.0,0.22142]
[1729748982920,0.06678662,67358.0,67357.0,0.30556347]
[1729748983139,0.08904883,67360.0,67357.0,0.30556347]
[1729748983140,0.06678662,67359.0,67357.0,0.2030265]
[1729748983346,0.04451628,67358.0,67357.0,0.19866094]
[1729748983574,0.04451628,67358.0,67357.0,0.20330414]
[1729748984218,0.06678662,67360.0,67357.0,0.20330414]
[1729748984219,0.04451644,67360.0,67357.0,0.20330414]
[1729748984437,0.04451644,67360.0,67358.0,0.0046432]
[1729748984697,0.04451644,67360.0,67359.0,0.0046432]
[1729748984898,0.04451644,67360.0,67359.0,0.02085899]
[1729748985104,0.04451644,67360.0,67359.0,0.0046432]
[1729748985307,0.04451644,67361.0,67359.0,0.0046432]
[1729748985523,0.04451644,67361.0,67360.0,0.0046432]
[1729748985736,0.04451644,67361.0,67359.0,0.01621579]
[1729748985995,0.04451644,67361.0,67360.0,0.02085436]
[1729748986206,0.04451644,67362.0,67360.0,0.02085436]
[1729748986411,0.04451644,67362.0,67360.0,0.01621127]
[1729748986853,0.04451644,67362.0,67357.0,0.30119691]
[1729748986854,0.04451644,67362.0,67361.0,0.101]
[1729748987072,0.00165,67363.0,67361.0,0.12184684]
[1729748987073,0.04616644,67363.0,67361.0,0.12184684]
[1729748987304,0.00165,67363.0,67362.0,0.0845]
[1729748987519,0.00165,67363.0,67362.0,0.44976481]
[1729748987728,0.00165,67363.0,67362.0,0.4756102]
[1729748990091,0.00165,67363.0,67362.0,0.47096722]
[1729748990305,0.00165,67363.0,67362.0,0.47561002]
[1729748990487,0.00165,67363.0,67362.0,0.47560984]
[1729748998397,0.00165,67363.0,67362.0,0.47588776]
[1729749000701,0.00165,67363.0,67362.0,0.47124514]
[1729749000900,0.00165,67363.0,67362.0,0.47588777]
[1729749001364,0.00165,67363.0,67362.0,0.47588775]
[1729749005626,0.00165,67363.0,67362.0,0.37988775]
[1729749007398,0.00165,67363.0,67362.0,0.30038775]
[1729749008427,0.00165,67363.0,67362.0,0.30781585]
[1729749011271,0.00165,67363.0,67362.0,0.30864085]
[1729749011728,0.00165,67363.0,67362.0,0.02937604]
[1729749011729,0.120409,67363.0,67362.0,0.02937604]
[1729749011990,0.290109,67363.0,67362.0,0.02194794]
[1729749012236,0.290109,67363.0,67362.0,0.00574553]
[1729749012463,0.290109,67363.0,67362.0,0.00574598]
[1729749012748,0.290109,67363.0,67362.0,0.00110292]
[1729749015177,0.33451587,67363.0,67362.0,0.00110292]
[1729749015865,0.290109,67363.0,67362.0,0.00110292]
[1729749017296,0.214309,67363.0,67362.0,0.00110292]
[1729749017762,0.09555,67363.0,67362.0,0.01801933]
[1729749018017,0.09555,67363.0,67362.0,0.12486392]
[1729749018244,0.00165,67363.0,67362.0,0.02301933]
[1729749018467,0.00165,67363.0,67362.0,0.0276624]
[1729749018711,0.00165,67363.0,67362.0,0.01074599]
[1729749018943,0.00165,67363.0,67362.0,0.1464234]
[1729749019182,0.00165,67363.0,67362.0,0.12950699]
[1729749019409,0.00165,67363.0,67362.0,0.1464234]
[1729749019635,0.00165,67363.0,67362.0,0.0276624]
[1729749019870,0.00165,67363.0,67362.0,0.1464234]
[1729749020597,0.00165,67363.0,67362.0,0.0276624]
[1729749021326,0.00165,67363.0,67362.0,0.1464234]
[1729749021559,0.00165,67363.0,67362.0,0.0276624]
[1729749021797,0.00165,67363.0,67362.0,0.1464234]
[1729749022036,0.00165,67363.0,67362.0,0.1514234]
[1729749022262,0.00165,67363.0,67362.0,0.0326624]
[1729749022783,0.120409,67363.0,67362.0,0.0276624]
[1729749023013,0.120409,67363.0,67362.0,0.01074599]
[1729749023014,0.290109,67363.0,67362.0,0.01074599]
[1729749023229,0.290109,67363.0,67362.0,0.00574599]
[1729749023433,0.290109,67363.0,67362.0,0.01074599]
[1729749024158,0.290109,67363.0,67362.0,0.00574599]
[1729749024354,0.290109,67363.0,67362.0,0.00110292]
[1729749025257,0.38096162,67363.0,67362.0,0.00574602]
[1729749025514,0.38096162,67363.0,67362.0,0.00574599]
[1729749025739,0.38096162,67363.0,67362.0,0.00110292]
[1729749025740,0.35681757,67363.0,67362.0,0.00110292]
[1729749025969,0.54322581,67363.0,67362.0,0.00110292]
[1729749026190,0.65631482,67363.0,67362.0,0.00110292]
[1729749027126,0.54513386,67363.0,67362.0,0.00110292]
[1729749027345,0.65634357,67363.0,67362.0,0.00110292]
[1729749028289,0.54513386,67363.0,67362.0,0.00110292]
[1729749028942,0.65634961,67363.0,67362.0,0.00110292]
[1729749029372,0.56549699,67363.0,67362.0,0.00110292]
[1729749029590,0.45428124,67363.0,67362.0,0.00110292]
[1729749029806,0.54324857,67363.0,67362.0,0.00110292]
[1729749030023,0.35683258,67363.0,67362.0,0.00110292]
[1729749030248,0.35683248,67363.0,67362.0,0.00110292]
[1729749031849,0.37907364,67363.0,67362.0,0.00110292]
[1729749032081,0.45431236,67363.0,67362.0,0.00110292]
[1729749032279,0.543277,67363.0,67362.0,0.00110292]
[1729749032713,0.45431236,67363.0,67362.0,0.00110292]
[1729749032916,0.290109,67363.0,67362.0,0.00110292]
[1729749033135,0.45430324,67363.0,67362.0,0.00110292]
[1729749033356,0.290109,67363.0,67362.0,0.00110292]
[1729749033593,0.45429379,67363.0,67362.0,0.00110292]
[1729749034023,0.54325617,67363.0,67362.0,0.00110292]
[1729749034687,0.45429153,67363.0,67362.0,0.00110292]
[1729749034918,0.290109,67363.0,67362.0,0.00110292]
[1729749035354,0.45428054,67363.0,67362.0,0.00110292]
[1729749035857,0.35681304,67363.0,67362.0,0.00110292]
[1729749036070,0.54322684,67363.0,67362.0,0.00110292]
[1729749036282,0.4542622,67363.0,67362.0,0.00110292]
[1729749036497,0.35681092,67363.0,67362.0,0.00110292]
[1729749037125,0.45425432,67363.0,67362.0,0.00110292]
[1729749037544,0.35681148,67363.0,67362.0,0.00110292]
[1729749037961,0.290109,67363.0,67362.0,0.00110292]
[1729749039294,0.06835248,67363.0,67362.0,0.00610292]
[1729749039553,0.04611956,67363.0,67362.0,0.00610292]
[1729749039731,0.16487864,67363.0,67362.0,0.026614]
[1729749039901,0.120409,67363.0,67362.0,0.00610292]
[1729749040316,0.16488031,67363.0,67362.0,0.00610292]
[1729749040736,0.04612131,67363.0,67362.0,0.00610292]
[1729749040943,0.120409,67363.0,67362.0,0.00610292]
[1729749041347,0.00165,67363.0,67362.0,0.00610292]
[1729749041921,0.120409,67363.0,67362.0,0.00610292]
[1729749042163,0.00165,67363.0,67362.0,0.026614]
[1729749042401,0.00165,67363.0,67362.0,0.03125688]
[1729749042886,0.04447131,67366.0,67362.0,0.03125688]
[1729749043187,0.16322531,67366.0,67365.0,0.005]
[1729749043421,0.16322531,67366.0,67365.0,0.0099208]
[1729749043422,0.118754,67366.0,67365.0,0.0099208]
[1729749043648,0.16322531,67366.0,67365.0,0.0099208]
[1729749043877,0.118754,67366.0,67365.0,0.0099208]
[1729749044123,0.118754,67366.0,67365.0,0.00992083]
[1729749044124,0.04447906,67366.0,67365.0,0.00992083]
[1729749044330,0.16323306,67366.0,67365.0,0.00527792]
[1729749044572,0.118754,67366.0,67365.0,0.00527792]
[1729749044814,0.118754,67366.0,67365.0,0.00027792]
[1729749045051,0.46994591,67366.0,67365.0,0.00027792]
[1729749045285,0.45434265,67366.0,67365.0,0.00027792]
[1729749046396,0.45599265,67366.0,67365.0,0.00027792]
[1729749046818,0.54684527,67366.0,67365.0,0.00027792]
[1729749047648,0.65805916,67366.0,67365.0,0.00027792]
[1729749047870,0.54684527,67366.0,67365.0,0.00027792]
[1729749052957,0.65809178,67366.0,67365.0,0.00027792]
[1729749053396,0.38265662,67366.0,67365.0,0.00027792]
[1729749053811,0.30175662,67366.0,67365.0,0.00027792]
[1729749056605,0.210904,67366.0,67365.0,0.00027792]
[1729749057447,0.00165,67366.0,67365.0,0.12403392]
[1729749057659,0.00165,67366.0,67365.0,0.14917362]
[1729749058725,0.00165,67370.0,67365.0,0.03041762]
[1729749058928,0.00165,67370.0,67369.0,0.005]
[1729749059131,0.00165,67370.0,67369.0,0.00992087]
[1729749059353,0.00165,67370.0,67369.0,0.00992058]
[1729749059587,0.00165,67370.0,67369.0,0.0304086]
[1729749060013,0.00165,67370.0,67369.0,0.1491566]
[1729749060247,0.00165,67370.0,67369.0,0.0304086]
[1729749061342,0.00165,67370.0,67369.0,0.1491566]
[1729749061540,0.00165,67370.0,67369.0,0.0304086]
[1729749061954,0.120397,67370.0,67369.0,0.0254086]
[1729749062185,0.30744962,67370.0,67369.0,0.00992058]
[1729749062631,0.30744962,67370.0,67369.0,0.00527791]
[1729749063052,0.30744962,67370.0,67369.0,0.00027791]
[1729749063695,0.30744962,67370.0,67369.0,0.00527791]
[1729749065018,0.37420173,67370.0,67369.0,0.00527791]
[1729749066546,0.30744962,67370.0,67369.0,0.00527791]
[1729749067171,0.21124962,67370.0,67369.0,0.00527791]
[1729749069105,0.120397,67370.0,67369.0,0.00527791]
[1729749070019,0.120397,67370.0,67369.0,0.00992044]
[1729749070648,0.120397,67370.0,67369.0,0.03040846]
[1729749071245,0.120397,67370.0,67369.0,0.02540846]
[1729749071469,0.198197,67370.0,67369.0,0.00027791]
[1729749071685,0.37807032,67370.0,67369.0,0.00027791]
[1729749071904,0.45327331,67370.0,67369.0,0.00027791]
[1729749072761,0.54222639,67370.0,67369.0,0.00027791]
[1729749073184,0.54222684,67370.0,67369.0,0.00027791]
[1729749074066,0.35581786,67370.0,67369.0,0.00027791]
[1729749075811,0.289097,67370.0,67369.0,0.00027791]
[1729749078158,0.45329557,67370.0,67369.0,0.00027791]
[1729749078375,0.54225848,67370.0,67369.0,0.00027791]
[1729749078777,0.45329557,67370.0,67369.0,0.00027791]
[1729749080525,0.28459557,67370.0,67369.0,0.00527791]
[1729749080731,0.18712817,67370.0,67369.0,0.00527791]
[1729749081172,0.120397,67370.0,67369.0,0.02574935]
[1729749081458,0.120397,67370.0,67369.0,0.00527791]
[1729749081673,0.120397,67370.0,67369.0,0.02574935]
[1729749081879,0.120397,67370.0,67369.0,0.00527791]
[1729749082525,0.120397,67370.0,67369.0,0.00992055]
[1729749082948,0.120397,67370.0,67369.0,0.03039199]
[1729749083159,0.120397,67370.0,67369.0,0.00527791]
[1729749083378,0.18712817,67370.0,67369.0,0.03039117]
[1729749083590,0.18712817,67370.0,67369.0,0.00992055]
[1729749084244,0.120397,67370.0,67369.0,0.03039117]
[1729749084449,0.120397,67370.0,67369.0,0.00992055]
[1729749084902,0.120397,67370.0,67369.0,0.03039117]
[1729749085132,0.120397,67370.0,67369.0,0.00992055]
[1729749085781,0.120397,67370.0,67360.0,0.34174104]
[1729749085782,0.118753,67367.0,67360.0,0.34174104]
[1729749085991,0.118753,67367.0,67361.0,0.00742823]
[1729749086211,0.118753,67367.0,67361.0,0.02048533]
[1729749086482,0.118753,67367.0,67362.0,0.00742823]
[1729749086707,0.118753,67367.0,67361.0,0.02048533]
[1729749086919,0.118753,67367.0,67360.0,0.26926781]
[1729749086920,0.118756,67365.0,67363.0,0.02048165]
[1729749087127,0.118756,67365.0,67362.0,0.02048349]
[1729749087335,0.118756,67365.0,67364.0,0.02047981]
[1729749087547,0.118756,67365.0,67363.0,0.02048165]
[1729749087792,0.118756,67365.0,67364.0,0.02047981]
[1729749088005,0.215353,67367.0,67364.0,0.02047981]
[1729749088220,0.215353,67367.0,67360.0,0.15050381]
[1729749088435,0.215353,67367.0,67365.0,0.02047797]
[1729749088648,0.005,67364.0,67359.0,0.0754]